bitfinex/quotes_BTCUSD_20250814
["timestamp","ask_amount","ask_price","bid_price","bid_amount"]
[1755212236614,0.08741299,118420.0,118410.0,0.30175465]
[1755212237221,0.08641299,118420.0,118410.0,0.29862465]
[1755212238662,0.08641299,118420.0,118410.0,0.30175465]
[1755212238966,0.17123423,118420.0,118410.0,0.30175465]
[1755212239526,0.17123423,118420.0,118410.0,0.30371465]
[1755212240248,0.28486299,118420.0,118410.0,0.30371465]
[1755212240475,0.08486299,118420.0,118410.0,0.30371465]
[1755212240902,0.28486299,118420.0,118410.0,0.30371465]
[1755212241081,0.08486299,118420.0,118410.0,0.30371465]
[1755212241227,0.28486299,118420.0,118410.0,0.30371465]
[1755212241428,0.08486299,118420.0,118410.0,0.30371465]
[1755212241630,0.28486299,118420.0,118410.0,0.30371465]
[1755212242024,0.08486299,118420.0,118410.0,0.30371465]
[1755212242227,0.28486299,118420.0,118410.0,0.30371465]
[1755212242867,0.08486299,118420.0,118410.0,0.30371465]
[1755212243097,0.28486299,118420.0,118410.0,0.30371465]
[1755212250905,0.36968423,118420.0,118410.0,0.30371465]
[1755212251831,0.28486299,118420.0,118410.0,0.30371465]
[1755212252406,0.28641299,118420.0,118410.0,0.30371465]
[1755212252989,0.33712299,118420.0,118410.0,0.30371465]
[1755212253221,0.28641299,118420.0,118410.0,0.30371465]
[1755212254129,0.28486299,118420.0,118410.0,0.30371465]
[1755212257214,0.28641299,118420.0,118410.0,0.30371465]
[1755212258407,0.28486299,118420.0,118410.0,0.30371465]
[1755212263289,0.33557299,118420.0,118410.0,0.30371465]
[1755212263548,0.28486299,118420.0,118410.0,0.30371465]
[1755212265750,0.36968423,118420.0,118410.0,0.30371465]
[1755212266170,0.28486299,118420.0,118410.0,0.30371465]
[1755212268650,0.28641299,118420.0,118410.0,0.29862465]
[1755212269028,0.28641299,118420.0,118410.0,0.30178465]
[1755212269394,0.28641299,118420.0,118410.0,0.30377465]
[1755212272797,0.28486299,118420.0,118410.0,0.30377465]
[1755212276211,0.36968423,118420.0,118410.0,0.30377465]
[1755212276753,0.28486299,118420.0,118410.0,0.30377465]
[1755212286524,0.28641299,118420.0,118410.0,0.30178465]
[1755212287141,0.28641299,118420.0,118410.0,0.30393465]
[1755212288645,0.28486299,118420.0,118410.0,0.30393465]
[1755212290607,0.28486299,118420.0,118410.0,0.29893465]
[1755212291169,0.28396299,118420.0,118410.0,0.29893465]
[1755212293293,0.28396299,118420.0,118410.0,0.16921465]
[1755212293506,0.28396299,118420.0,118410.0,0.29881465]
[1755212294947,0.28396299,118420.0,118410.0,0.84904809]
[1755212297332,0.2,118420.0,118410.0,1.42383153]
[1755212297556,0.2,118420.0,118410.0,1.76383153]
[1755212297775,0.02118257,118430.0,118420.0,0.16889039]
[1755212297988,0.02118257,118430.0,118420.0,0.72142073]
[1755212298203,0.02118257,118430.0,118420.0,0.74918073]
[1755212298404,0.02118257,118430.0,118420.0,0.77455173]
[1755212299042,0.02118257,118430.0,118420.0,0.22431829]
[1755212299242,0.02118257,118430.0,118420.0,0.77455173]
[1755212299656,0.15,118450.0,118440.0,0.16886187]
[1755212299853,0.43481405,118450.0,118440.0,0.17101187]
[1755212300073,0.43481405,118450.0,118440.0,0.17422187]
[1755212308727,0.43481405,118450.0,118440.0,0.72445531]
[1755212312652,0.43481405,118450.0,118440.0,0.17422187]
[1755212312855,0.28481405,118450.0,118440.0,0.17422187]
[1755212313027,0.28481405,118450.0,118440.0,0.72445531]
[1755212313495,0.41437405,118450.0,118440.0,0.72445531]
[1755212313735,0.41437405,118450.0,118440.0,0.17422187]
[1755212314358,0.41592405,118450.0,118440.0,0.17422187]
[1755212314781,0.96615749,118450.0,118440.0,0.17207187]
[1755212315086,0.96615749,118450.0,118440.0,0.16886187]
[1755212315334,0.41592405,118450.0,118440.0,0.16886187]
[1755212318813,0.41592405,118450.0,118440.0,0.17190187]
[1755212320698,0.41592405,118450.0,118440.0,0.16886187]
[1755212321390,0.41592405,118450.0,118440.0,0.17190187]
[1755212321954,0.96615749,118450.0,118440.0,0.17190187]
[1755212322832,0.41592405,118450.0,118440.0,0.17190187]
[1755212324470,0.96615749,118450.0,118440.0,0.17190187]
[1755212326647,0.96615749,118450.0,118430.0,0.17191612]
[1755212326648,1.15245412,118450.0,118430.0,0.17191612]
[1755212326878,0.95390936,118440.0,118430.0,0.16887612]
[1755212327085,0.97010918,118440.0,118430.0,0.16887612]
[1755212327289,0.25101387,118440.0,118430.0,0.16887612]
[1755212327513,0.25101387,118440.0,118430.0,0.17191612]
[1755212327735,0.22898387,118440.0,118430.0,0.72410956]
[1755212328094,0.22898387,118440.0,118430.0,0.72510956]
[1755212328659,0.42898387,118440.0,118430.0,0.72510956]
[1755212328870,0.01464982,118440.0,118430.0,0.85562956]
[1755212329075,0.32952,118450.0,118440.0,0.16886187]
[1755212329281,0.41433405,118450.0,118440.0,0.72409531]
[1755212330870,0.21433405,118450.0,118440.0,0.72409531]
[1755212331279,0.41433405,118450.0,118440.0,0.17386187]
[1755212331495,0.41433405,118450.0,118440.0,0.72409531]
[1755212332151,0.21433405,118450.0,118440.0,0.72409531]
[1755212332824,0.41433405,118450.0,118440.0,0.72409531]
[1755212333466,0.41433405,118450.0,118440.0,0.80891655]
[1755212333641,0.08481405,118450.0,118440.0,0.72409531]
[1755212334066,0.47952001,118460.0,118450.0,0.16884761]
[1755212334225,0.47952001,118460.0,118450.0,0.72104105]
[1755212334226,0.56433406,118460.0,118450.0,0.72104105]
[1755212334456,0.56433406,118460.0,118450.0,0.17384761]
[1755212335070,0.56433406,118460.0,118450.0,0.72408105]
[1755212335230,0.21433406,118460.0,118450.0,0.72508105]
[1755212335465,0.41433406,118460.0,118450.0,0.72608105]
[1755212336249,0.41433406,118460.0,118450.0,0.85560105]
[1755212336459,0.21433406,118460.0,118450.0,0.85560105]
[1755212336698,0.41433406,118460.0,118450.0,0.85560105]
[1755212337146,0.12952001,118460.0,118450.0,0.85560105]
[1755212337319,0.14398469,118460.0,118450.0,0.85560105]
[1755212337545,0.14398469,118460.0,118450.0,0.30536761]
[1755212338058,0.14398469,118460.0,118450.0,0.85560105]
[1755212339054,0.14398469,118460.0,118450.0,0.72608105]
[1755212343033,0.23035593,118460.0,118450.0,0.72608105]
[1755212343290,0.14553469,118460.0,118450.0,0.17584761]
[1755212343512,0.14398469,118460.0,118450.0,0.72608105]
[1755212349362,0.14398469,118460.0,118450.0,0.17584761]
[1755212349576,0.14398469,118460.0,118450.0,0.72608105]
[1755212350671,0.14398469,118460.0,118450.0,0.17584761]
[1755212350969,0.14398469,118460.0,118450.0,0.72608105]
[1755212351914,0.14398469,118460.0,118450.0,0.85556105]
[1755212353296,0.13898469,118460.0,118450.0,0.85556105]
[1755212361320,0.13898469,118460.0,118450.0,0.30532761]
[1755212361538,0.13898469,118460.0,118450.0,0.85556105]
[1755212361761,0.13898469,118460.0,118450.0,0.72608105]
[1755212364896,0.13398469,118460.0,118450.0,0.85556105]
[1755212365542,0.01446468,118460.0,118450.0,0.85556105]
[1755212367580,0.01446468,118460.0,118450.0,0.30532761]
[1755212368025,0.01446468,118460.0,118450.0,0.85556105]
[1755212370729,0.01446468,118460.0,118450.0,0.30532761]
[1755212370985,0.01446468,118460.0,118450.0,0.85556105]
[1755212372956,0.01446468,118460.0,118450.0,0.30532761]
[1755212373183,0.01446468,118460.0,118450.0,0.85556105]
[1755212375990,0.01446468,118460.0,118450.0,0.17584761]
[1755212376629,0.01446468,118460.0,118450.0,0.72608105]
[1755212376843,0.01446468,118460.0,118450.0,0.17584761]
[1755212377092,0.01446468,118460.0,118450.0,0.72608105]
[1755212377943,0.01446468,118460.0,118450.0,0.85552105]
[1755212379368,0.65106217,118460.0,118450.0,0.17084761]
[1755212379803,0.81989553,118460.0,118450.0,0.17084761]
[1755212380399,0.65106217,118460.0,118450.0,0.17084761]
[1755212381295,0.10082873,118460.0,118450.0,0.17084761]
[1755212381506,0.65106217,118460.0,118450.0,0.17084761]
[1755212382698,0.81989553,118460.0,118450.0,0.17084761]
[1755212382888,0.90471677,118460.0,118450.0,0.17084761]
[1755212383302,1.01989553,118460.0,118450.0,0.17084761]
[1755212383926,0.85106217,118460.0,118450.0,0.17084761]
[1755212385254,1.01989553,118460.0,118450.0,0.17084761]
[1755212385873,0.85089784,118460.0,118450.0,0.17084761]
[1755212387056,1.0197312,118460.0,118450.0,0.17084761]
[1755212387245,1.1697312,118460.0,118450.0,0.17084761]
[1755212390454,1.24025209,118460.0,118450.0,0.002]
[1755212391106,1.15543085,118460.0,118450.0,0.002]
[1755212391522,0.60519741,118460.0,118450.0,0.001]
[1755212391737,0.2,118450.0,118440.0,0.17185187]
[1755212391949,0.41425405,118450.0,118440.0,0.17399187]
[1755212392894,1.1348851,118450.0,118440.0,0.17499187]
[1755212393122,1.1348851,118450.0,118440.0,0.17385187]
[1755212393339,1.23812536,118450.0,118440.0,0.002]
[1755212393775,1.22067634,118450.0,118440.0,0.002]
[1755212393995,1.23812536,118450.0,118440.0,0.002]
[1755212394778,0.60307068,118450.0,118440.0,0.002]
[1755212394991,1.15330412,118450.0,118440.0,0.002]
[1755212395393,0.36886187,118440.0,118430.0,0.16887612]
[1755212395594,1.00545936,118440.0,118430.0,0.16887612]
[1755212396230,0.45522592,118440.0,118430.0,0.16887612]
[1755212396458,1.00545936,118440.0,118430.0,0.17186612]
[1755212396805,1.15545936,118440.0,118430.0,0.17386612]
[1755212397014,1.2402806,118440.0,118430.0,0.002]
[1755212398067,1.17290838,118440.0,118430.0,0.002]
[1755212398765,0.62267494,118440.0,118430.0,0.002]
[1755212398978,1.17290838,118440.0,118430.0,0.002]
[1755212400936,1.72314182,118440.0,118430.0,0.002]
[1755212401176,0.62364494,118440.0,118430.0,0.002]
[1755212401388,1.72411182,118440.0,118430.0,0.002]
[1755212401610,1.80893306,118440.0,118430.0,0.001]
[1755212401831,1.25869962,118440.0,118430.0,0.001]
[1755212402046,0.36887612,118430.0,118420.0,0.17202669]
[1755212402286,1.15236263,118430.0,118420.0,0.0001469]
[1755212402475,1.20034422,118430.0,118420.0,0.0001469]
[1755212402686,1.15236263,118430.0,118420.0,0.0001469]
[1755212402880,1.16066136,118430.0,118420.0,0.0001469]
[1755212403363,0.61042792,118430.0,118420.0,0.0001469]
[1755212403583,1.16066136,118430.0,118420.0,0.0001469]
[1755212404240,1.16066136,118430.0,118420.0,0.0011469]
[1755212404467,1.2454826,118430.0,118420.0,0.0011469]
[1755212405769,1.2454826,118430.0,118420.0,0.0001469]
[1755212406110,0.69524916,118430.0,118420.0,0.0001469]
[1755212406323,0.61042792,118430.0,118420.0,0.0001469]
[1755212406548,1.16066136,118430.0,118420.0,0.0001469]
[1755212406762,1.16066136,118430.0,118420.0,0.0030769]
[1755212407179,0.60887792,118430.0,118420.0,0.17411729]
[1755212407404,1.16066136,118430.0,118420.0,0.0052269]
[1755212407851,1.2454826,118430.0,118420.0,0.0052269]
[1755212408291,1.28418322,118430.0,118420.0,0.0052269]
[1755212408504,1.28418322,118430.0,118420.0,0.0062269]
[1755212409422,1.28418322,118430.0,118420.0,0.0072269]
[1755212409642,1.19936198,118430.0,118420.0,0.0072269]
[1755212417831,1.19936198,118430.0,118420.0,0.0050769]
[1755212418048,1.19936198,118430.0,118420.0,0.0021469]
[1755212418926,1.19936198,118430.0,118420.0,0.0011469]
[1755212419123,1.19936198,118430.0,118420.0,0.0001469]
[1755212419372,1.28418322,118430.0,118420.0,0.0001469]
[1755212419758,1.28418322,118430.0,118420.0,0.17411729]
[1755212419974,1.19936198,118430.0,118420.0,0.17411729]
[1755212420801,0.64912854,118430.0,118420.0,0.17411729]
[1755212420952,1.19936198,118430.0,118420.0,0.17411729]
[1755212421156,1.215165,118430.0,118420.0,0.17411729]
[1755212421402,0.66493156,118430.0,118420.0,0.17411729]
[1755212421564,1.215165,118430.0,118420.0,0.17411729]
[1755212422685,1.22978522,118430.0,118420.0,0.17411729]
[1755212422884,1.31460646,118430.0,118420.0,0.17411729]
[1755212423088,1.31460646,118430.0,118420.0,0.0001469]
[1755212424491,1.31460646,118430.0,118420.0,0.0030769]
[1755212425109,0.76437302,118430.0,118420.0,0.0030769]
[1755212425319,1.31460646,118430.0,118420.0,0.0030769]
[1755212425520,1.36628646,118430.0,118420.0,0.0001469]
[1755212426177,1.47420248,118430.0,118420.0,0.0001469]
[1755212427326,1.56313248,118430.0,118420.0,0.0001469]
[1755212427540,1.47420248,118430.0,118420.0,0.0001469]
[1755212428216,1.47520248,118430.0,118420.0,0.0001469]
[1755212429103,1.47424398,118430.0,118420.0,0.0001469]
[1755212429539,1.47424069,118430.0,118420.0,0.0001469]
[1755212429971,1.47521069,118430.0,118420.0,0.0001469]
[1755212430417,1.47520957,118430.0,118420.0,0.0001469]
[1755212431550,1.47423957,118430.0,118420.0,0.0001469]
[1755212433611,0.92400613,118430.0,118420.0,0.0001469]
[1755212433831,1.47423957,118430.0,118420.0,0.0001469]
[1755212435061,1.47423126,118430.0,118420.0,0.0001469]
[1755212443521,1.38150206,118430.0,118420.0,0.0001469]
[1755212446294,1.47043206,118430.0,118420.0,0.0001469]
[1755212446506,1.38150206,118430.0,118420.0,0.0001469]
[1755212453376,1.38150206,118430.0,118420.0,0.0053069]
[1755212453377,0.70027862,118430.0,118420.0,0.0053069]
[1755212453609,1.37991206,118430.0,118420.0,0.0053069]
[1755212453829,1.3641022,118430.0,118420.0,0.0053069]
[1755212454227,1.37993227,118430.0,118420.0,0.0053069]
[1755212455101,1.46475351,118430.0,118420.0,0.0053069]
[1755212455314,1.66475351,118430.0,118420.0,0.0053069]
[1755212455708,1.46475351,118430.0,118420.0,0.0053069]
[1755212456113,1.32922227,118430.0,118420.0,0.0053069]
[1755212458174,0.77898883,118430.0,118420.0,0.0053069]
[1755212458375,1.32922227,118430.0,118420.0,0.0053069]
[1755212460726,1.31460205,118430.0,118420.0,0.0053069]
[1755212460941,1.31460206,118430.0,118420.0,0.0053069]
[1755212461155,0.76436862,118430.0,118420.0,0.0053069]
[1755212461366,1.31460206,118430.0,118420.0,0.0053069]
[1755212461578,1.3994233,118430.0,118420.0,0.0053069]
[1755212462966,1.38359322,118430.0,118420.0,0.0053069]
[1755212463183,1.39942244,118430.0,118420.0,0.0053069]
[1755212463888,1.3146012,118430.0,118420.0,0.17419729]
[1755212464883,1.3146012,118430.0,118420.0,0.0053069]
[1755212465938,1.31460029,118430.0,118420.0,0.0053069]
[1755212466916,1.31460029,118430.0,118420.0,0.17419729]
[1755212467595,1.31460029,118430.0,118420.0,0.0053069]
[1755212467815,0.76436685,118430.0,118420.0,0.0053069]
[1755212468038,1.31460029,118430.0,118420.0,0.0053069]
[1755212468261,1.36531029,118430.0,118420.0,0.0053069]
[1755212472015,1.45168153,118430.0,118420.0,0.0053069]
[1755212473389,0.90144809,118430.0,118420.0,0.0053069]
[1755212473596,1.36686029,118430.0,118420.0,0.0053069]
[1755212473808,1.35103198,118430.0,118420.0,0.0053069]
[1755212474565,0.80079854,118430.0,118420.0,0.0053069]
[1755212475029,1.35103198,118430.0,118420.0,0.0053069]
[1755212475218,0.80079854,118430.0,118420.0,0.0053069]
[1755212475438,1.34948198,118430.0,118420.0,0.0053069]
[1755212475730,1.43430322,118430.0,118420.0,0.0053069]
[1755212476366,1.34948198,118430.0,118420.0,0.0053069]
[1755212477312,1.36531338,118430.0,118420.0,0.0053069]
[1755212477531,0.81507994,118430.0,118420.0,0.0053069]
[1755212477773,1.36531338,118430.0,118420.0,0.0053069]
[1755212478024,1.31460338,118430.0,118420.0,0.0053069]
[1755212478240,1.39942462,118430.0,118420.0,0.0053069]
[1755212479413,0.76436994,118430.0,118420.0,0.0053069]
[1755212479595,1.31460338,118430.0,118420.0,0.0053069]
[1755212480438,1.31615338,118430.0,118420.0,0.0053069]
[1755212481274,0.76591994,118430.0,118420.0,0.0053069]
[1755212481490,1.31460338,118430.0,118420.0,0.17419729]
[1755212482474,0.76436994,118430.0,118420.0,0.17419729]
[1755212482684,1.31460338,118430.0,118420.0,0.17419729]
[1755212484168,1.31460338,118430.0,118420.0,0.0053069]
[1755212484841,0.84919118,118430.0,118420.0,0.0053069]
[1755212485073,1.39942462,118430.0,118420.0,0.0053069]
[1755212485821,1.40097462,118430.0,118420.0,0.0053069]
[1755212486174,1.40098499,118430.0,118420.0,0.0053069]
[1755212486626,0.85075155,118430.0,118420.0,0.0053069]
[1755212486843,1.40098499,118430.0,118420.0,0.0053069]
[1755212489728,0.85075155,118430.0,118420.0,0.0053069]
[1755212489973,1.31616375,118430.0,118420.0,0.0053069]
[1755212491559,0.76593031,118430.0,118420.0,0.0053069]
[1755212491765,1.31616375,118430.0,118420.0,0.0053069]
[1755212492176,0.76593031,118430.0,118420.0,0.0053069]
[1755212492391,1.31616375,118430.0,118420.0,0.0053069]
[1755212492922,0.81664031,118430.0,118420.0,0.0053069]
[1755212493153,0.81664031,118430.0,118420.0,0.17419729]
[1755212493380,1.36687375,118430.0,118420.0,0.17419729]
[1755212494197,0.81664031,118430.0,118420.0,0.17419729]
[1755212494420,1.36687375,118430.0,118420.0,0.17419729]
[1755212494949,0.81664031,118430.0,118420.0,0.17419729]
[1755212495166,1.36687375,118430.0,118420.0,0.17419729]
[1755212497846,0.81664031,118430.0,118420.0,0.17419729]
[1755212498053,1.36687375,118430.0,118420.0,0.17419729]
[1755212498262,1.45169499,118430.0,118420.0,0.17419729]
[1755212498476,1.36687375,118430.0,118420.0,0.17419729]
[1755212499129,1.36687375,118430.0,118420.0,0.0053069]
[1755212499352,1.36784375,118430.0,118420.0,0.0001469]
[1755212500470,1.56784375,118430.0,118420.0,0.0001469]
[1755212500859,1.57576307,118430.0,118420.0,0.0001469]
[1755212501240,1.65266499,118430.0,118420.0,0.0001469]
[1755212503769,1.6526576,118430.0,118420.0,0.0001469]
[1755212504884,1.10242416,118430.0,118420.0,0.0001469]
[1755212505144,1.6526576,118430.0,118420.0,0.0001469]
[1755212505379,1.10242416,118430.0,118420.0,0.0001469]
[1755212505598,1.6526576,118430.0,118420.0,0.0001469]
[1755212506043,1.6516876,118430.0,118420.0,0.0001469]
[1755212506473,1.65168528,118430.0,118420.0,0.0001469]
[1755212511431,1.10145184,118430.0,118420.0,0.0001469]
[1755212511751,1.65168528,118430.0,118420.0,0.0001469]
[1755212512164,1.10145184,118430.0,118420.0,0.0001469]
[1755212512372,1.65168528,118430.0,118420.0,0.0001469]
[1755212512625,1.10242184,118430.0,118420.0,0.0001469]
[1755212513037,1.65265528,118430.0,118420.0,0.0001469]
[1755212513672,1.65168528,118430.0,118420.0,0.0001469]
[1755212516929,1.65168528,118430.0,118420.0,0.0001469]
[1755212518181,1.65168212,118430.0,118420.0,0.0001469]
[1755212520368,7.20191556,118430.0,118420.0,0.0001469]
[1755212520580,7.24184381,118430.0,118420.0,0.0001469]
[1755212520784,7.29226317,118430.0,118420.0,0.0001469]
[1755212521340,7.26622722,118430.0,118420.0,0.0001469]
[1755212521793,7.68318435,118430.0,118420.0,1e-08]
[1755212522004,7.6743126,118430.0,118420.0,1e-08]
[1755212522213,7.69941933,118430.0,118420.0,1e-08]
[1755212522439,7.70141933,118430.0,118420.0,1e-08]
[1755212522662,7.67638338,118430.0,118420.0,1e-08]
[1755212522873,7.65138338,118430.0,118420.0,1e-08]
[1755212523090,7.67638338,118430.0,118420.0,1e-08]
[1755212523301,6.5759165,118430.0,118420.0,1e-08]
[1755212523517,7.67638338,118430.0,118420.0,1e-08]
[1755212524183,7.65127665,118430.0,118420.0,1e-08]
[1755212524430,7.63304167,118430.0,118420.0,1e-08]
[1755212524654,6.53257479,118430.0,118420.0,1e-08]
[1755212524866,7.63304167,118430.0,118420.0,1e-08]
[1755212525086,7.53304167,118430.0,118420.0,1e-08]
[1755212525973,7.53303442,118430.0,118420.0,1e-08]
[1755212527154,7.51720552,118430.0,118420.0,1e-08]
[1755212527387,7.5330152,118430.0,118420.0,1e-08]
[1755212527601,7.5332952,118430.0,118420.0,1e-08]
[1755212528457,7.5332152,118430.0,118420.0,1e-08]
[1755212528679,7.5322452,118430.0,118420.0,1e-08]
[1755212528902,7.5072452,118430.0,118420.0,1e-08]
[1755212529169,7.5322452,118430.0,118420.0,1e-08]
[1755212529622,7.5072452,118430.0,118420.0,1e-08]
[1755212529835,7.5322452,118430.0,118420.0,1e-08]
[1755212531614,7.53224359,118430.0,118420.0,1e-08]
[1755212532258,7.97334359,118430.0,118420.0,1e-08]
[1755212532479,7.94834359,118430.0,118420.0,1e-08]
[1755212532707,7.97334359,118430.0,118420.0,1e-08]
[1755212533445,7.96741591,118430.0,118420.0,1e-08]
[1755212533662,7.94369084,118430.0,118420.0,1e-08]
[1755212535151,7.91869084,118430.0,118420.0,1e-08]
[1755212535376,7.94369084,118430.0,118420.0,1e-08]
[1755212536052,6.81822396,118430.0,118420.0,1e-08]
[1755212536262,7.94369084,118430.0,118420.0,1e-08]
[1755212536470,7.98805101,118430.0,118420.0,1e-08]
[1755212537248,7.96305101,118430.0,118420.0,1e-08]
[1755212537450,7.98805101,118430.0,118420.0,1e-08]
[1755212538294,7.96305101,118430.0,118420.0,1e-08]
[1755212538472,7.98805101,118430.0,118420.0,1e-08]
[1755212538842,6.88758413,118430.0,118420.0,1e-08]
[1755212539073,7.96305101,118430.0,118420.0,1e-08]
[1755212540193,7.98805101,118430.0,118420.0,1e-08]
[1755212541048,7.96305101,118430.0,118420.0,1e-08]
[1755212541614,7.98805101,118430.0,118420.0,1e-08]
[1755212543197,7.96305101,118430.0,118420.0,1e-08]
[1755212543430,6.88758413,118430.0,118420.0,1e-08]
[1755212543656,7.98805101,118430.0,118420.0,1e-08]
[1755212543875,7.96305101,118430.0,118420.0,1e-08]
[1755212544091,7.98805101,118430.0,118420.0,1e-08]
[1755212544328,7.98806021,118430.0,118420.0,1e-08]
[1755212544815,7.96306021,118430.0,118420.0,1e-08]
[1755212545026,7.98806021,118430.0,118420.0,1e-08]
[1755212545154,6.88759333,118430.0,118420.0,1e-08]
[1755212545372,8.00628249,118430.0,118420.0,1e-08]
[1755212545573,7.98128249,118430.0,118420.0,1e-08]
[1755212545776,8.00628249,118430.0,118420.0,1e-08]
[1755212546229,7.98128249,118430.0,118420.0,1e-08]
[1755212546443,8.03138922,118430.0,118420.0,1e-08]
[1755212547753,8.00628249,118430.0,118420.0,1e-08]
[1755212547959,7.98128249,118430.0,118420.0,1e-08]
[1755212548169,7.98806021,118430.0,118420.0,1e-08]
[1755212548625,8.00629571,118430.0,118420.0,1e-08]
[1755212548827,7.98129571,118430.0,118420.0,1e-08]
[1755212549041,8.00629571,118430.0,118420.0,1e-08]
[1755212549666,7.98129571,118430.0,118420.0,1e-08]
[1755212549879,8.00634657,118430.0,118420.0,1e-08]
[1755212550097,8.0314533,118430.0,118420.0,1e-08]
[1755212550302,7.5903533,118430.0,118420.0,1e-08]
[1755212551520,7.5721178,118430.0,118420.0,1e-08]
[1755212551728,7.59036388,118430.0,118420.0,1e-08]
[1755212552821,7.56536388,118430.0,118420.0,1e-08]
[1755212553043,7.59036388,118430.0,118420.0,1e-08]
[1755212554346,7.56536388,118430.0,118420.0,1e-08]
[1755212554579,7.59036388,118430.0,118420.0,1e-08]
[1755212554806,7.59036388,118430.0,118420.0,0.00323001]
[1755212555847,8.03146388,118430.0,118420.0,0.00323001]
[1755212557838,8.00635715,118430.0,118420.0,0.00323001]
[1755212558274,7.98135715,118430.0,118420.0,0.00323001]
[1755212558459,8.00635715,118430.0,118420.0,0.00323001]
[1755212559886,7.98135715,118430.0,118420.0,0.00323001]
[1755212560336,8.00635715,118430.0,118420.0,0.00323001]
[1755212560552,6.90589027,118430.0,118420.0,0.00323001]
[1755212560771,8.00635715,118430.0,118420.0,0.00323001]
[1755212561017,7.98135715,118430.0,118420.0,0.00323001]
[1755212561242,8.00635715,118430.0,118420.0,0.00323001]
[1755212562068,7.98135715,118430.0,118420.0,0.00323001]
[1755212562294,6.82106903,118430.0,118420.0,0.00323001]
[1755212562537,6.82106903,118430.0,118420.0,0.00525001]
[1755212562538,1.21214883,118430.0,118420.0,0.00525001]
[1755212562739,1.66804319,118430.0,118420.0,0.02926001]
[1755212562996,1.66210341,118430.0,118420.0,0.02926001]
[1755212563446,1.67955243,118430.0,118420.0,0.02926001]
[1755212563887,2.32054491,118430.0,118420.0,0.02926001]
[1755212564323,1.21807803,118430.0,118420.0,0.02926001]
[1755212564540,1.77130902,118430.0,118420.0,0.02926001]
[1755212564716,1.68054998,118430.0,118420.0,0.02926001]
[1755212566770,1.61961989,118430.0,118420.0,0.02926001]
[1755212569812,1.61961989,118430.0,118420.0,0.00525001]
[1755212572721,1.67035989,118430.0,118420.0,0.00525001]
[1755212573827,1.75518113,118430.0,118420.0,0.00525001]
[1755212575719,1.26587778,118430.0,118420.0,0.00525001]
[1755212576056,1.75518113,118430.0,118420.0,0.00525001]
[1755212576274,1.26585791,118430.0,118420.0,0.00525001]
[1755212576664,1.75516126,118430.0,118420.0,0.00525001]
[1755212580447,1.75671126,118430.0,118420.0,1e-08]
[1755212580810,1.78209426,118430.0,118420.0,1e-08]
[1755212581023,6.78209426,118430.0,118420.0,1e-08]
[1755212581237,6.78209426,118430.0,118420.0,0.00296001]
[1755212582215,6.78209426,118430.0,118420.0,1e-08]
[1755212582421,6.83309217,118430.0,118420.0,1e-08]
[1755212582860,6.83212217,118430.0,118420.0,1e-08]
[1755212583515,6.80701544,118430.0,118420.0,1e-08]
[1755212583739,6.77909426,118430.0,118420.0,1e-08]
[1755212583967,6.78465426,118430.0,118420.0,0.00498001]
[1755212584175,6.78464983,118430.0,118420.0,0.00498001]
[1755212587244,6.7846539,118430.0,118420.0,0.00498001]
[1755212587670,6.7831039,118430.0,118420.0,0.00498001]
[1755212588322,6.78310511,118430.0,118420.0,0.00498001]
[1755212589258,6.78465511,118430.0,118420.0,0.00498001]
[1755212590092,6.78466008,118430.0,118420.0,0.00498001]
[1755212592411,6.79059819,118430.0,118420.0,0.00498001]
[1755212593167,6.79060473,118430.0,118420.0,0.00498001]
[1755212593697,6.30130138,118430.0,118420.0,0.00498001]
[1755212593925,6.79060473,118430.0,118420.0,0.00498001]
[1755212594747,6.85177259,118430.0,118420.0,0.00498001]
[1755212596850,6.85022259,118430.0,118420.0,0.00498001]
[1755212598269,6.84428448,118430.0,118420.0,0.00498001]
[1755212599553,6.84583448,118430.0,118420.0,0.00498001]
[1755212599762,6.84583448,118430.0,118420.0,0.00296001]
[1755212601994,6.84583452,118430.0,118420.0,0.00296001]
[1755212602209,6.84583452,118430.0,118420.0,1e-08]
[1755212602866,7.39630573,118430.0,118420.0,1e-08]
[1755212603088,7.39727573,118430.0,118420.0,1e-08]
[1755212603297,7.40321418,118430.0,118420.0,1e-08]
[1755212603513,7.40224418,118430.0,118420.0,1e-08]
[1755212603740,6.85177297,118430.0,118420.0,1e-08]
[1755212603962,6.30130176,118430.0,118420.0,1e-08]
[1755212604245,6.85177297,118430.0,118420.0,0.00323001]
[1755212604529,6.85177297,118430.0,118420.0,0.00521001]
[1755212604751,6.851777,118430.0,118420.0,0.00521001]
[1755212605183,6.30130579,118430.0,118420.0,0.00521001]
[1755212605402,6.851777,118430.0,118420.0,0.00521001]
[1755212606463,6.81307638,118430.0,118420.0,0.00521001]
[1755212608725,6.81307638,118430.0,118420.0,0.00323001]
[1755212610113,6.81307878,118430.0,118420.0,0.00323001]
[1755212610523,6.79724378,118430.0,118420.0,0.00323001]
[1755212610823,6.81308611,118430.0,118420.0,0.00323001]
[1755212613350,6.2626149,118430.0,118420.0,0.00323001]
[1755212613574,6.81308611,118430.0,118420.0,0.00323001]
[1755212614847,6.81308653,118430.0,118420.0,0.00323001]
[1755212616560,6.81309098,118430.0,118420.0,0.00323001]
[1755212617400,6.85137815,118430.0,118420.0,0.00323001]
[1755212618895,6.30090694,118430.0,118420.0,1e-08]
[1755212619122,6.85137815,118430.0,118420.0,1e-08]
[1755212619383,6.82761313,118430.0,118420.0,1e-08]
[1755212619603,6.85137808,118430.0,118420.0,1e-08]
[1755212620130,6.85137808,118430.0,118420.0,0.00307001]
[1755212620776,6.30090687,118430.0,118420.0,0.00307001]
[1755212620995,6.85137808,118430.0,118420.0,0.00307001]
[1755212625357,6.8513781,118430.0,118420.0,0.00307001]
[1755212634122,6.30090689,118430.0,118420.0,0.00307001]
[1755212634377,6.8513781,118430.0,118420.0,0.00307001]
[1755212640898,6.30090689,118430.0,118420.0,0.00307001]
[1755212641115,6.8513781,118430.0,118420.0,0.00307001]
[1755212642437,6.8513781,118430.0,118420.0,1e-08]
[1755212643381,6.30090689,118430.0,118420.0,1e-08]
[1755212643587,6.8513781,118430.0,118420.0,0.00307001]
[1755212644980,6.8513781,118430.0,118420.0,0.00513001]
[1755212645454,6.8498281,118430.0,118420.0,0.00513001]
[1755212646074,6.8513781,118430.0,118420.0,0.00513001]
[1755212646433,6.81309093,118430.0,118420.0,0.00513001]
[1755212647528,6.81309046,118430.0,118420.0,0.00513001]
[1755212648903,6.26261925,118430.0,118420.0,0.00513001]
[1755212649108,6.81309046,118430.0,118420.0,0.00513001]
[1755212649745,6.81154046,118430.0,118420.0,1e-08]
[1755212649867,6.81309046,118430.0,118420.0,0.00303001]
[1755212650365,6.81308904,118430.0,118420.0,0.00303001]
[1755212651505,6.26261783,118430.0,118420.0,0.00303001]
[1755212651712,6.81308904,118430.0,118420.0,0.00303001]
[1755212651929,6.81308904,118430.0,118420.0,1e-08]
[1755212652146,6.85026485,118430.0,118420.0,1e-08]